Cogmind - Beta 9 @@@ ROGUE MODE // 2019.10.28 @ 00:24:22 Player: Finestep Result: Destroyed by G-34 Mercenary with Small Laser Performance ------------- Evolutions (1) 500 Regions Visited (3) 600 Robots Destroyed (112) 560 Value Destroyed (2257) 2257 Prototype IDs (7) 140 Alien Tech Used (0) 0 Bonus (174) 174 TOTAL SCORE: 4231 Bonus ------- High Alert Combat Kills 174 Cogmind --------- Core Integrity 0/400 Matter 200/300 Energy 280/280 System Corruption 2% Temperature Cool (170) Location -9/Storage Parts ------- Power (1) Heavy Ion Engine Propulsion (2) Improved Treads Utility (4) Large Storage Unit High-capacity Storage Unit High-capacity Storage Unit Weapon (2) Improved Assault Rifle Improved Assault Rifle Inventory (26) Light Treads Light Treads Light Treads High-capacity Storage Unit Large Battery (300) High-capacity Matter Pod (200) Structural Scanner Transport Network Coupler Light Armor Plating Medium Armor Plating Hacking Suite Improved Medium Laser Improved Medium Laser Improved Medium Laser Advanced Beam Cannon Advanced Beam Cannon Advanced Beam Cannon Improved Assault Rifle Improved Assault Rifle Improved Assault Rifle Guided Missile Launcher Mining Laser Plasma Cutter Peak State ------------ Power Improved Ion Engine Propulsion Light Treads Improved Treads Utility Large Storage Unit High-capacity Storage Unit High-capacity Storage Unit Light Armor Plating Weapon Guided Missile Launcher Inventory Heavy Ion Engine Light Treads Light Treads Light Treads High-capacity Storage Unit Large Battery High-capacity Matter Pod Structural Scanner Transport Network Coupler Light Armor Plating Medium Armor Plating Medium Armor Plating Hacking Suite Improved Medium Laser Improved Medium Laser Improved Medium Laser Advanced Beam Cannon Advanced Beam Cannon Advanced Beam Cannon Advanced Beam Cannon Autogun Autogun Improved Assault Rifle Improved Assault Rifle Mini Grenade Launcher Plasma Cutter [Rating: 24] Favorites ----------- Power Ion Engine Engine Ion Engine Propulsion Wheel Treads Light Treads Wheel Wheel Utility Large Storage Unit Device Improved Heat Sink Storage Large Storage Unit Processor Transport Network Coupler Protection Medium Armor Plating Weapon Autogun Energy Gun Improved Medium Laser Energy Cannon Advanced Beam Cannon Ballistic Gun Autogun Launcher Guided Missile Launcher Special Weapon Mining Laser Build | -11 -10 -9 -9 ------- Run | Scr Mat Mat Sto Slots Evolved 2 | . . 2 . Power . | . . . . Propulsion . | . . . . Utility 2 | . . 2 . Weapon . | . . . . Parts Attached 85 | 6 14 35 30 Power 10 | 1 1 5 3 Engine 10 | 1 1 5 3 Core . | . . . . Reactor . | . . . . Propulsion 18 | 2 3 8 5 Treads 8 | . . 3 5 Leg . | . . . . Wheel 10 | 2 3 5 . Hover . | . . . . Flight . | . . . . Utility 18 | 1 3 7 7 Device 3 | . . 2 1 Storage 8 | 1 3 2 2 Processor 1 | . . 1 . Hackware . | . . . . Protection 6 | . . 2 4 Artifact . | . . . . Weapon 39 | 2 7 15 15 Energy Gun 5 | . 1 4 . Energy Cannon 5 | . . 2 3 Ballistic Gun 21 | 2 3 8 8 Ballistic Cannon . | . . . . Launcher 1 | . . . 1 Special Weapon 7 | . 3 1 3 Impact Weapon . | . . . . Slashing Weapon . | . . . . Piercing Weapon . | . . . . Special Melee Weapon . | . . . . Unidentified Prototypes 5 | . . 3 2 Parts Lost 17 | . 3 6 8 Power 5 | . 1 2 2 Propulsion 3 | . . 1 2 Utility 5 | . . 2 3 Weapon 4 | . 2 1 1 Highest Loss Streak 3 | . 1 3 3 Average Slot Usage (%) 97 | . 98 96 98 Engine 11 | . 13 10 10 Treads 8 | . . 8 16 Wheel 14 | . 28 12 5 Storage 31 | . 26 33 33 Processor 1 | . . 3 . Protection 5 | . . 4 10 Energy Gun 4 | . 5 6 . Energy Cannon 1 | . . . 3 Ballistic Gun 16 | . 21 13 17 Naked Turns . | . . . . Heaviest Build 101 | 10 57 84 101 Greatest Support 43 | 32 32 40 43 Greatest Overweight (x) 8 | . 2 7 8 Average Overweight (x) 1 | . . 2 3 Largest Inventory Capacity 26 | 6 18 24 26 Average Capacity 20 | 5 11 23 25 Most Carried 26 | 6 16 24 26 Average Carried 20 | 3 10 23 24 Final Capacity 26 | . . . 26 Final Carried 24 | . . . 24 Class Distribution -------------------- 72% | Hauler-Mutant 27% | Mutant Dominant Class ---------------- Mutant | -10/Materials Hauler-Mutant | -9/Materials Hauler-Mutant | -9/Storage Resources | -11 -10 -9 -9 ----------- Run | Scr Mat Mat Sto Matter Collected 2776 | 300 654 1131 691 Remotely . | . . . . Salvage Created 4039 | 119 621 1648 1651 Parts 246 | 6 28 105 107 Haulers Intercepted 11 | . 2 6 3 Recyclers Shooed 8 | . 4 2 2 Parts Field Recycled . | . . . . Retrieved Matter . | . . . . Parts Self-Destructed . | . . . . Prevented . | . . . . Kills | -11 -10 -9 -9 ------- Run | Scr Mat Mat Sto Combat Hostiles Destroyed 63 | . 9 22 32 Guns 54 | . 9 22 23 Cannons 9 | . . . 9 Classes Destroyed 10 | 2 5 3 . Worker 15 | . 1 7 7 Builder 4 | . . 3 1 Tunneler 1 | 1 . . . Hauler 11 | . 2 6 3 Recycler 7 | 1 2 1 3 Operator 4 | . . 3 1 Watcher 7 | . 1 4 2 Swarmer 17 | . 3 2 12 Grunt 33 | . 6 14 13 Sentry 13 | . . 6 7 Best Kill Streak 15 | 1 3 6 15 Combat Bots Only 13 | . 2 3 13 Max Kills in Single Turn 2 | 1 1 2 2 Gunslinging 1 | . . . 1 Exploded . | . . . . Melee . | . . . . Uniques/NPCs Destroyed . | . . . . Combat | -11 -10 -9 -9 -------- Run | Scr Mat Mat Sto Damage Taken 3816 | . 622 1163 2031 Core 523 | . 117 154 252 Absorbed by Shields . | . . . . Core Remaining (%) 76 | 100 53 . . Volleys Fired 361 | 10 106 133 112 Largest 2 | 2 2 2 2 Hottest 100 | 40 100 100 100 Shots Fired 679 | 20 200 248 211 Gun 618 | 20 194 247 157 Cannon 50 | . . . 50 Launcher . | . . . . Special 11 | . 6 1 4 Kinetic 550 | 20 167 208 155 Thermal 120 | . 33 31 56 Explosive . | . . . . Electromagnetic 9 | . . 9 . Robot Hit Streak 16 | 6 10 16 14 Robot Miss Streak 8 | 1 7 8 5 Penetration Max . | . . . . Secondary Targets 7 | . 1 2 4 Max Gunslinging Chain 1 | . 1 1 1 Shots Hit Robots 415 | 14 107 151 143 Core Hits 160 | 5 29 64 62 Critical Hits 7 | . 1 . 6 Critical Kills 3 | . . . 3 Critical Parts Destroyed 4 | . 1 . 3 Melee Attacks . | . . . . Impact . | . . . . Slashing . | . . . . Piercing . | . . . . Sneak Attacks . | . . . . Combat Hostiles . | . . . . Follow-up Attacks . | . . . . Damage Inflicted 5926 | 118 1037 2337 2434 Guns 5170 | 118 1037 2337 1678 Cannons 756 | . . . 756 Explosions . | . . . . Melee . | . . . . Ramming . | . . . . Kinetic 4714 | 118 890 2028 1678 Thermal 1147 | . 147 244 756 Explosive . | . . . . Electromagnetic 65 | . . 65 . Impact . | . . . . Slashing . | . . . . Piercing . | . . . . Highest Corruption 2 | . . 2 2 Average Corruption 1 | . . 1 2 Corruption Purged . | . . . . Effects 21 | . . . 21 Message Errors 7 | . . . 7 Heat Flow Errors 3 | . . . 3 Energy Discharges 2 | . . . 2 Targeting Errors 6 | . . . 6 Weapon Failures 3 | . . . 3 Overload Shots . | . . . . Overflow Damage 10 | . . . 10 Projectiles 10 | . . . 10 Explosions . | . . . . Melee . | . . . . Knockbacks . | . . . . Impact . | . . . . Kinetic . | . . . . Secondary . | . . . . Self-Inflicted Damage . | . . . . Shots . | . . . . Rammed . | . . . . Targets Rammed . | . . . . Kicked . | . . . . Crushed . | . . . . Highest Temperature 409 | . 177 286 409 Average Temperature 85 | . 58 52 112 Received Heat Transfer 1344 | . 294 435 615 Effects 4 | . . 1 3 Shutdowns 1 | . . . 1 Energy Bleed 2 | . . . 2 Interference 1 | . . 1 . Siege Activations . | . . . . Robots Corrupted . | . . . . Combat Hostiles . | . . . . Parts Fried . | . . . . Impact Corruptions . | . . . . Robots Melted . | . . . . Combat Hostiles . | . . . . Parts Melted 3 | . . 2 1 Heat Transferred 2183 | . 333 518 1332 Parts Sabotaged . | . . . . Parts Stolen . | . . . . Parts Stripped . | . . . . Power Chain Reactions . | . . . . Missiles Intercepted . | . . . . Alert | -11 -10 -9 -9 ------- Run | Scr Mat Mat Sto Peak Influence 699 | 10 208 360 699 Average Influence 209 | 3 83 137 434 Maximum Alert Level 2 | . 1 1 2 Low Security (%) 59 | . . . . Level 1 19 | . . . . Level 2 21 | . . . . Level 3 . | . . . . Level 4 . | . . . . Level 5 . | . . . . High Security . | . . . . Max Security . | . . . . Squads Dispatched 10 | . 3 3 4 Investigation 4 | . 2 1 1 Extermination . | . . . . Reinforcement 5 | . 1 2 2 Assault 1 | . . . 1 Garrison . | . . . . Intercept . | . . . . Construction Impeded . | . . . . Haulers Reinforced . | . . . . Stealth | -11 -10 -9 -9 --------- Run | Scr Mat Mat Sto Distress Signals 5 | . 1 3 1 Communications Jammed . | . . . . Distress Signals . | . . . . Times Spotted 115 | . 23 38 54 Peak Tracking Total 7 | . 4 5 7 Tactical Retreats 6 | . 2 2 2 Traps | -11 -10 -9 -9 ------- Run | Scr Mat Mat Sto Traps Triggered 9 | . 2 6 1 Indirectly . | . . . . Trap Hack Attempts . | . . . . Triggered . | . . . . Disarmed . | . . . . Reprogrammed . | . . . . Reused . | . . . . Traps Extracted . | . . . . Installed . | . . . . Triggered . | . . . . Machines | -11 -10 -9 -9 ---------- Run | Scr Mat Mat Sto Machines Disabled 3 | . . 1 2 Max in Single Turn 1 | . . 1 1 Garrison Access 1 | . . . 1 Machines Sabotaged . | . . . . Garrisons Compromised . | . . . . Overloaded Fab Kills . | . . . . Fab Network Shutdowns . | . . . . Hacking | -11 -10 -9 -9 --------- Run | Scr Mat Mat Sto Machines Accessed 22 | . 8 9 5 Terminals 19 | . 6 9 4 Fabricators . | . . . . Repair Stations . | . . . . Recycling Units 2 | . 2 . . Scanalyzers . | . . . . Garrison Access 1 | . . . 1 Total Hacks 75 | . 20 40 15 Successful 44 | . 13 22 9 Failed 31 | . 7 18 6 Catastrophic 2 | . . 2 . Database Lockouts . | . . . . Manual 29 | . 9 13 7 Terminals 69 | . 16 40 13 Fabricators . | . . . . Repair Stations . | . . . . Recycling Units 4 | . 4 . . Scanalyzers . | . . . . Garrison Access 2 | . . . 2 Terminal Hacks 29 | . 7 16 6 Robot Analysis 2 | . . 2 . Prototype ID Bank 1 | . . 1 . Open Door 3 | . . . 3 Branch Access Points 2 | . 1 1 . Emergency Access Points 1 | . . 1 . Terminal Index 1 | . . 1 . Unreport Threat 4 | . 1 3 . Locate Traps 6 | . 1 3 2 Recall Investigation 1 | . 1 . . Hauler Manifests 3 | . 1 2 . Registered Components 1 | . . 1 . Zone Layout 4 | . 2 1 1 Fabricator Hacks . | . . . . Repair Station Hacks . | . . . . Recycling Unit Hacks 1 | . 1 . . Retrieve Components 1 | . 1 . . Scanalyzer . | . . . . Garrison Access Hacks . | . . . . Unauthorized Hacks 31 | . 11 12 8 Terminals 11 | . 3 6 2 Track 4 | . 1 2 1 Botnet 6 | . 2 3 1 Operators 1 | . . 1 . Fabricators . | . . . . Repair Stations . | . . . . Recycling Units 2 | . 2 . . Tunnel 2 | . 2 . . Scanalyzers . | . . . . Garrison Access 1 | . . . 1 Jam 1 | . . . 1 Data Cores Recovered 1 | . . 1 . Used 1 | . . 1 . Hacking Detections 21 | . 7 9 5 Full Trace Events 1 | . . 1 . Feedback Events . | . . . . Feedback Blocked . | . . . . Robot Schematics Acquired . | . . . . Robots Built . | . . . . Matter . | . . . . Time . | . . . . Total Robot Build Rating . | . . . . Part Schematics Acquired . | . . . . Parts Built . | . . . . Matter . | . . . . Time . | . . . . Total Part Build Rating . | . . . . Parts Repaired . | . . . . Time . | . . . . Parts Recycled . | . . . . Recycled Matter . | . . . . Retrieved Matter . | . . . . Retrieved Components 10 | . 10 . . Parts Scanalyzed . | . . . . Part Schematics Acquired . | . . . . Parts Damaged . | . . . . Bothacking | -11 -10 -9 -9 ------------ Run | Scr Mat Mat Sto Used RIF Installer . | . . . . Robots Hacked . | . . . . Non-combat . | . . . . Combat . | . . . . Robot Hacks Applied . | . . . . Relay Couplers Released . | . . . . Robots Rewired . | . . . . Allies Hacked . | . . . . Hacks Repelled . | . . . . Allies | -11 -10 -9 -9 -------- Run | Scr Mat Mat Sto Total Allies . | . . . . Largest Group . | . . . . Highest-Rated Group . | . . . . Highest-Rated Ally . | . . . . Total Orders 1 | . . . 1 ROAM 1 | . . . 1 Ally Attacks . | . . . . Total Damage . | . . . . Kills . | . . . . Allies Corrupted . | . . . . Allies Melted . | . . . . Intel | -11 -10 -9 -9 ------- Run | Scr Mat Mat Sto Robot Analysis Total 2 | . . 2 . Derelict Logs Recovered . | . . . . Drone Launches 2 | . . . 2 Drone Recoveries . | . . . . Exploration | -11 -10 -9 -9 ------------- Run | Scr Mat Mat Sto Turns Passed 4282 | 91 1066 1846 1279 Spaces Moved 2040 | 49 725 796 470 Core 1 | 1 . . . Treads 590 | . . 321 269 Legs . | . . . . Wheels 1449 | 48 725 475 201 Hover . | . . . . Flight . | . . . . Fastest Speed 50 | 50 90 110 120 Average Speed 130 | 98 97 140 169 Slowest Speed 200 | 100 110 180 200 Overloaded Moves . | . . . . Propulsion Burnouts . | . . . . Robots Hopped . | . . . . Cave-ins Triggered . | . . . . Exploration Rate (%) 56 | 5 93 64 63 Regions Visited 3 Branch Regions 1 Pre-discovered Areas 3 | . 2 . 1 Known Exits Taken 1 | . . 1 . Unknown Exits Taken 2 | 1 1 . . Scrap Searched . | . . . . Spaces Dug 9 | . 6 1 2 Terrain Destroyed 9 | . 6 1 2 Melee . | . . . . Projectile 9 | . 6 1 2 AOE . | . . . . Actions | -11 -10 -9 -9 --------- Run | Scr Mat Mat Sto Total 3030 | 70 894 1321 745 Wait 428 | . 27 301 100 Move 2037 | 48 724 795 470 Hop . | . . . . Pick Up 62 | 6 16 30 10 Fast Attach 30 | 6 2 15 7 Attach 21 | . 3 11 7 Detach 4 | . . 2 2 Swap 34 | . 9 9 16 Drop 50 | . 7 25 18 Fire 361 | 10 106 133 112 Melee . | . . . . Ram . | . . . . Kick . | . . . . Crush . | . . . . Escape Stasis 2 | . . . 2 Rewire . | . . . . Trap . | . . . . Miscellaneous 1 | . . . 1 Route ------- -11/Scrapyard -10/Materials (discovered 3 exits: *Mat x2 / *Min) -9/Materials (discovered 4 exits: [*Mat] / *Min x2 / *Sto) -9/Storage History --------- Turn | Location | Event 18 | -11/Scrapyard | Discovered new exit (range 16) 92 | -11/Scrapyard | Entered Materials 126 | -10/Materials | Discovered new exit (range 16) 308 | -10/Materials | Build established: Mutant 977 | -10/Materials | Discovered new exit (range 15) 1075 | -10/Materials | Identified exit to Mines 1075 | -10/Materials | Discovered new exit (range 19) 1158 | -10/Materials | Entered another Materials area 1158 | -9/Materials | Evolved 2 slots: Utility x2 1397 | -9/Materials | Discovered new exit (range 16) 1471 | -9/Materials | Build established: Hauler-Mutant 1486 | -9/Materials | Lost 3 parts (1n1u1w) 1587 | -9/Materials | Discovered new exit (range 13) 2161 | -9/Materials | Discovered new exit (range 16) 2484 | -9/Materials | Identified exit to Mines 2484 | -9/Materials | Identified exit to Storage 3004 | -9/Materials | Entered Storage 3046 | -9/Storage | Learned location of Armory (-3) 3356 | -9/Storage | Core integrity fell below 50% 3458 | -9/Storage | Destroyed 13 combat bots 3887 | -9/Storage | Found Prototype Launcher 3887 | -9/Storage | Identified Gui. Missile Launcher 4204 | -9/Storage | First assault squad dispatched 4247 | -9/Storage | Core integrity fell below 20% 4283 | -9/Storage | Destroyed by G-34 Mercenary with Small Laser Last Messages --------------- 04251_ U-05 Engineer lays Concrete. 04252_ System corrupted: Imp. Assault Rifle jammed. 04255_ Overheating: Energy bleed (-31). 04258_ L-31 Rogue destroyed. 04259_ R-06 Scavenger collects Imp. Ion Engine. 04263_ LBCOK4= BF/XD2CNSX CPX9DY7UG G& 04263_ G-34 Mercenary destroyed. 04263_ R-06 Scavenger collects Sml. Laser. 04266_ Y-45 Defender suffers critical hit. 04266_ Y-45 Defender destroyed. 04266_ R-06 Scavenger collects Ion Engine. 04273_ R-06 Scavenger collects Beam Rifle. 04274_ C-30 ARC bursts open, deploying its payload. 04274_ S-10 Pest unfolds itself. 04275_ K-01 Serf collects debris. 04275_ Lgt. Treads destroyed. 04277_ K-01 Serf collects debris. 04281_ G-47 Trooper destroyed. 04281_ Switching to secondary target: G-34 Mercenary. 04281_ K-01 Serf collects debris. Map ----- +----------------------------------------------------+ | + ## ##]]] #??????????????? | | ########+###### ## #??????????????? | | #??????# #????# ######T##??????????????? | | ######## #????# #????###???????????????? | | ^!! % #????##########??????????????????????? | | ## ^! ########## #??????????????????????????? | | ## ^!! # # #??????????????????????????? | | *#%* + """ # #??????????????????????????? | | %#=! * # !""" # #??????????????????????????? | | =#=*"=" # *"""==# #??????????????????????????? | | !+ !"G" %+ ] %[=%!+ #??????????????????????????? | | !#[[ " # [ "[==%# #??????????????????????????? | | ##*= % % #% [""" # !#??????????????????????????? | | %[%%!!! %+ """ # !!#??????????????????????????? | | ##+####### #!!%#########??????????????????? | | ? ?????##### #### !!#[!#!![[#??????????????????? | | ?"""??############# %=#[= [[#??????????????????? | | """??#] # [!#%% [[#??????????????????? | | """??# ! #=%=+%== #??????????????????? | | ??# #!=*##T# ]]]#??????????????????? | | ??????# ] +**!#?##?]]]#??????????????????? | | ??????# ! # =#?????###??????????????????? | | ??????# # #??????????????????????????? | | ??????# ! # #??????????????????????????? | | ??????######+###### ########### #???????????? | | ?#/#########*#???# i%s@ r % r ????????? | | ?# ! %#=##### s!g%=* % ????????? | | ?# % =%+=% s s=########## = #???????????? | | ?# !#[k "#????????????????????????? | | ?# # k"""" T#????????????????????????? | | ?########### """""" "#????????????????????????? | | ??????????"%" """"" ##????????????????????????? | | ????????? " """"" ?????????????????????????? | | ????????? ?????????????????????????? | | ??????????? ?????????????????????????? | | ??????????? ?????????????????????????? | | ???????????###"""T"""###?????????????????????????? | | ??????????????#######????????????????????????????? | | ?????????????????????????????????????????????????? | | | | | | | | | | | | | | | | | | | | | | | +----------------------------------------------------+ Best States ------------- Heat Dissipation 42 Energy Generation 14 Energy Capacity 280 Matter Stores 402 Matter Capacity 500 Sight Range 16 Terrain Scan Density 10 Armor Coverage 225 Evasion (%) 42 Recoil Reduction 2 Item Schematics ----------------- None Robot Schematics ------------------ None Fabricated ------------ Nothing Alien Tech Used ----------------- None Achievements -------------- None Challenges ------------ None Game ------ Seed ReclamationBurstInitializer Manual? 0 Play Time 00:33:42 Cumulative 239.9 hours Start 2019.10.27 @ 23:24:33 End 2019.10.28 @ 00:24:22 Sessions 1 Manual Loads 0 Difficulty Rogue Special Mode None Game No. 195 Rogue 195 Adventurer 0 Explorer 0 Win Type - Total 3 Types 3/0/0/0/0/0/0 Lore% 73 Gallery% 76 Achievement% 53 Wizard Run 0 Options --------- ASCII 0 Keyboard 0 Movement Mouse Keybinds 1 Fullscreen 2 Font 24/Smallcaps Map View 76x50 Tactical HUD 1 Map Filters NONE Filters NONE Steam 1 RUN: 492a5460-428d-4e18-ad09-77061ea67803